Cogmind - Beta 13 @@@ ROGUE MODE // 2024.04.08 @ 20:07:52 Player: JunkerBernd Result: Self-destructed Performance ------------- Evolutions (2) 1000 Regions Visited (5) 1000 Robots Destroyed (27) 135 Value Destroyed (517) 517 Prototype IDs (1) 20 Alien Tech Used (0) 0 Bonus (300) 300 TOTAL SCORE: 2972 Bonus ------- Aligned with FarCom 300 Cogmind --------- Core Integrity 515/550 Matter 245/500 Energy 520/520 System Corruption 0% Temperature Hot (212) Movement Treading (240) Ox1 Location -8/Materials Parts ------- > --- POWER (2) -------- Cooled Deuterium Engine Cooled Deuterium Engine > --- PROPULSION (4) --- Light Treads Light Treads > --- UTILITY (2) ------ High-capacity Storage Unit High-capacity Matter Pod > --- WEAPON (3) ------- Assault Rifle Flak Cannon > --- INVENTORY (20) --- Ion Engine Light Ion Engine Cooled Deuterium Engine Cooled Deuterium Engine Aluminum Leg Small Storage Unit Huge Storage Unit Weight Redist. System Experimental Sensor Array Core Analyzer Core Analyzer Core Analyzer Core Analyzer Light Assault Rifle Peak State ------------ > --- POWER ------------ Cooled Deuterium Engine Cooled Deuterium Engine > --- PROPULSION ------- Light Treads Light Treads Light Treads Light Treads > --- UTILITY ---------- High-capacity Storage Unit High-capacity Matter Pod > --- WEAPON ----------- Assault Rifle Flak Cannon Grenade Launcher > --- INVENTORY -------- Ion Engine Light Ion Engine Cooled Deuterium Engine Cooled Deuterium Engine Aluminum Leg Small Storage Unit Huge Storage Unit Weight Redist. System Experimental Sensor Array Core Analyzer Core Analyzer Core Analyzer Core Analyzer Light Assault Rifle [Rating: 25] Favorites ----------- Power Ion Engine Engine Ion Engine Propulsion Light Treads Treads Light Treads Utility Small Storage Unit Device Weight Redist. System Storage Small Storage Unit Weapon Assault Rifle Ballistic Gun Assault Rifle Ballistic Cannon Flak Cannon Launcher Grenade Launcher Build | -11 -10 -10 -10 -9 -8 ------- Run | Yrd Mat Min Exi Min Mat Slots Evolved 4 | . . . . . 4 Power 1 | . . . . . 1 Propulsion 2 | . . . . . 2 Utility . | . . . . . . Weapon 1 | . . . . . 1 Parts Attached 19 | 6 4 . 1 . 8 Power 5 | 1 1 . . . 3 Engine 5 | 1 1 . . . 3 Core . | . . . . . . Reactor . | . . . . . . Propulsion 4 | 2 . . . . 2 Treads 4 | 2 . . . . 2 Leg . | . . . . . . Wheel . | . . . . . . Hover . | . . . . . . Flight . | . . . . . . Utility 5 | 1 2 . 1 . 1 Device 1 | . 1 . . . . Storage 4 | 1 1 . 1 . 1 Processor . | . . . . . . Hackware . | . . . . . . Protection . | . . . . . . Artifact . | . . . . . . Weapon 5 | 2 1 . . . 2 Energy Gun . | . . . . . . Energy Cannon . | . . . . . . Ballistic Gun 3 | 2 . . . . 1 Ballistic Cannon 1 | . . . . . 1 Launcher 1 | . 1 . . . . Special Weapon . | . . . . . . Impact Weapon . | . . . . . . Slashing Weapon . | . . . . . . Piercing Weapon . | . . . . . . Special Melee Weapon . | . . . . . . Unidentified Prototypes 1 | . . . . . 1 Parts Lost 3 | . . . . . 3 Power . | . . . . . . Propulsion 2 | . . . . . 2 Utility . | . . . . . . Weapon 1 | . . . . . 1 Highest Loss Streak 3 | . . . . . 3 To Critical Strikes . | . . . . . . Average Slot Usage (%) 99 | . 95 100 100 100 98 Engine 14 | . 14 14 14 14 18 Treads 29 | . 28 28 28 28 35 Device 1 | . 7 . . . . Storage 24 | . 16 28 28 28 18 Ballistic Gun 14 | . 22 14 14 14 12 Launcher 11 | . 5 14 14 14 8 Naked Turns . | . . . . . . Heaviest Build 77 | 11 17 17 19 19 77 Greatest Support 80 | 40 46 40 40 40 80 Greatest Overweight (x) . | . . . . . . Average Overweight (x) . | . . . . . . Largest Inventory Capacity 20 | 8 8 8 8 8 20 Average Capacity 9 | 6 8 8 8 8 19 Most Carried 14 | 6 8 8 8 8 14 Average Carried 8 | 4 7 8 7 8 12 Final Capacity 20 | 8 8 8 8 8 20 Final Carried 14 | 6 8 8 8 8 14 Class Distribution -------------------- 85% | Mutant 14% | Skirmisher Dominant Class ---------------- Mutant | -10/Materials Mutant | -10/Mines Mutant | -10/Exiles Mutant | -9/Mines Skirmisher | -8/Materials Resources | -11 -10 -10 -10 -9 -8 ----------- Run | Yrd Mat Min Exi Min Mat Matter Collected 469 | 238 144 57 27 . 3 Remotely . | . . . . . . Salvage Created 647 | 48 176 28 . . 395 Parts 48 | . 18 5 . . 25 Haulers Intercepted 2 | . 2 . . . . Recyclers Shooed 1 | . 1 . . . . Parts Field Recycled . | . . . . . . Retrieved Matter . | . . . . . . Parts Self-Destructed . | . . . . . . Prevented . | . . . . . . Kills | -11 -10 -10 -10 -9 -8 ------- Run | Yrd Mat Min Exi Min Mat Combat Hostiles Destroyed 16 | . 4 3 . . 9 Guns 5 | . 1 1 . . 3 Cannons 4 | . . . . . 4 AOE 7 | . 3 2 . . 2 Classes Destroyed 10 | 1 5 . . . 4 Worker 3 | . 2 . . . 1 Tunneler 1 | . . . . . 1 Hauler 2 | . 2 . . . . Recycler 3 | 1 . . . . 2 Operator 1 | . . . . . 1 Watcher 1 | . 1 . . . . Swarmer 8 | . 3 3 . . 2 Grunt 6 | . 1 . . . 5 Brawler 1 | . . . . . 1 Sentry 1 | . . . . . 1 Best Kill Streak 12 | 1 3 3 . . 12 Combat Bots Only 8 | . 3 3 . . 8 Max Kills in Single Turn 3 | 1 3 3 . . 3 Gunslinging . | . . . . . . Exploded 3 | . 3 2 . . 1 Melee . | . . . . . . Uniques/NPCs Destroyed . | . . . . . . Combat | -11 -10 -10 -10 -9 -8 -------- Run | Yrd Mat Min Exi Min Mat Hostile Shots Fired 77 | . 10 1 . . 66 Missed 26 | . 3 1 . . 22 Damage Taken 709 | . 87 . . 11 611 Core 45 | . 10 . . . 35 Absorbed by Shields . | . . . . . . Core Remaining (%) 98 | 100 . . . 96 . Volleys Fired 28 | 1 13 1 . . 13 Largest 3 | 1 2 2 . . 3 Hottest 94 | 20 50 50 . . 94 Shots Fired 62 | 1 25 2 . . 34 Gun 38 | 1 23 1 . . 13 Cannon 13 | . . . . . 13 Launcher 11 | . 2 1 . . 8 Special . | . . . . . . Kinetic 51 | 1 23 1 . . 26 Thermal . | . . . . . . Explosive 11 | . 2 1 . . 8 Electromagnetic . | . . . . . . Robot Hit Streak 10 | . 10 1 . . 6 Robot Miss Streak 3 | 1 2 . . . 3 Penetration Max . | . . . . . . Secondary Targets . | . . . . . . Shots Hit Robots 41 | . 16 1 . . 24 Core Hits 47 | 2 10 3 . . 32 Critical Kills . | . . . . . . Critical Parts Destroyed . | . . . . . . Critical Strikes . | . . . . . . Melee Attacks . | . . . . . . Impact . | . . . . . . Slashing . | . . . . . . Piercing . | . . . . . . Sneak Attacks . | . . . . . . Combat Hostiles . | . . . . . . Follow-up Attacks . | . . . . . . Damage Inflicted 1243 | 15 373 73 . . 782 Guns 329 | . 182 13 . . 134 Cannons 180 | . . . . . 180 Explosions 700 | . 188 60 . . 452 Melee . | . . . . . . Ramming 34 | 15 3 . . . 16 Kinetic 509 | . 182 13 . . 314 Thermal . | . . . . . . Explosive 700 | . 188 60 . . 452 Electromagnetic . | . . . . . . Impact . | . . . . . . Slashing . | . . . . . . Piercing . | . . . . . . Highest Corruption . | . . . . . . Average Corruption . | . . . . . . Corruption Purged . | . . . . . . Corruption Blocked . | . . . . . . Overload Shots . | . . . . . . Overflow Damage 4 | . 4 . . . . Projectiles . | . . . . . . Explosions 4 | . 4 . . . . Melee . | . . . . . . Knockbacks 5 | . . . . . 5 Impact . | . . . . . . Kinetic 5 | . . . . . 5 Secondary . | . . . . . . Self-Inflicted Damage 90 | . 23 . . . 67 Shots 5 | . 1 . . . 4 Rammed 9 | 6 2 . . . 1 Targets Rammed 11 | 7 3 . . . 1 Kicked . | . . . . . . Crushed 2 | 1 1 . . . . Highest Temperature 212 | . 6 . . . 212 Average Temperature 86 | . 6 . . . 96 Received Heat Transfer 252 | . 18 . . . 234 Siege Activations . | . . . . . . Robots Corrupted . | . . . . . . Combat Hostiles . | . . . . . . Parts Fried . | . . . . . . Impact Corruptions . | . . . . . . Robots Melted . | . . . . . . Combat Hostiles . | . . . . . . Parts Melted . | . . . . . . Heat Transferred . | . . . . . . Parts Sabotaged . | . . . . . . Parts Stolen . | . . . . . . Parts Stripped . | . . . . . . Power Chain Reactions . | . . . . . . Alert | -11 -10 -10 -10 -9 -8 ------- Run | Yrd Mat Min Exi Min Mat Peak Influence 306 | 5 162 141 . . 306 Initial 63 | . 3 63 . . . Average 52 | 1 57 112 . . 65 Maximum Alert Level 1 | . . . . . 1 Low Security (%) 97 | 100 100 100 . 100 93 Level 1 2 | . . . . . 6 Level 2 . | . . . . . . Level 3 . | . . . . . . Level 4 . | . . . . . . Level 5 . | . . . . . . High Security . | . . . . . . Max Security . | . . . . . . Squads Dispatched 3 | . . . . . 3 Investigation . | . . . . . . Extermination . | . . . . . . Reinforcement 2 | . . . . . 2 Assault . | . . . . . . Garrison 1 | . . . . . 1 Intercept . | . . . . . . Searches Triggered . | . . . . . . Construction Impeded 1 | . . . . . 1 Haulers Reinforced . | . . . . . . Active Scanning Responses . | . . . . . . Cargo Convoy Interrupts . | . . . . . . Stealth | -11 -10 -10 -10 -9 -8 --------- Run | Yrd Mat Min Exi Min Mat Distress Signals . | . . . . . . Communications Jammed . | . . . . . . Distress Signals . | . . . . . . Times Spotted 29 | . 5 3 . 3 18 Peak Tracking Total 8 | . 3 3 . 6 8 Tactical Retreats . | . . . . . . Traps | -11 -10 -10 -10 -9 -8 ------- Run | Yrd Mat Min Exi Min Mat Traps Triggered . | . . . . . . Indirectly . | . . . . . . Trap Hack Attempts . | . . . . . . Triggered . | . . . . . . Disarmed . | . . . . . . Reprogrammed . | . . . . . . Reused . | . . . . . . Traps Extracted . | . . . . . . Installed . | . . . . . . Triggered . | . . . . . . Machines | -11 -10 -10 -10 -9 -8 ---------- Run | Yrd Mat Min Exi Min Mat Machines Disabled 3 | . 1 . . . 2 Max in Single Turn 1 | . 1 . . . 1 Machines Repaired . | . . . . . . Machines Dismantled . | . . . . . . Machines Sabotaged . | . . . . . . Overloaded Fab Kills . | . . . . . . Hacking | -11 -10 -10 -10 -9 -8 --------- Run | Yrd Mat Min Exi Min Mat Machines Accessed 4 | . 2 . 1 . 1 Terminals 3 | . 2 . . . 1 Fabricators . | . . . . . . Repair Stations . | . . . . . . Recycling Units . | . . . . . . Scanalyzers . | . . . . . . Garrison Access . | . . . . . . Total Hacks 10 | . 4 . 4 . 2 Successful 8 | . 4 . 4 . . Failed 2 | . . . . . 2 Catastrophic 1 | . . . . . 1 Database Lockouts . | . . . . . . Manual . | . . . . . . Terminals 6 | . 4 . . . 2 Fabricators . | . . . . . . Repair Stations . | . . . . . . Recycling Units . | . . . . . . Scanalyzers . | . . . . . . Garrison Access . | . . . . . . Terminal Hacks 8 | . 4 . 4 . . Record 4 | . . . 4 . . Branch Access Points 1 | . 1 . . . . Hauler Manifests 1 | . 1 . . . . Registered Components 1 | . 1 . . . . Zone Layout 1 | . 1 . . . . Fabricator Hacks . | . . . . . . Repair Station Hacks . | . . . . . . Recycling Unit Hacks . | . . . . . . Scanalyzer . | . . . . . . Garrison Access Hacks . | . . . . . . Unauthorized Hacks . | . . . . . . Terminals . | . . . . . . Fabricators . | . . . . . . Repair Stations . | . . . . . . Recycling Units . | . . . . . . Scanalyzers . | . . . . . . Garrison Access . | . . . . . . Data Cores Recovered . | . . . . . . Used . | . . . . . . Hacking Detections 2 | . 1 . . . 1 Full Trace Events . | . . . . . . Feedback Events . | . . . . . . Feedback Blocked . | . . . . . . Robot Schematics Acquired . | . . . . . . Robots Built . | . . . . . . Authchips . | . . . . . . Time . | . . . . . . Total Robot Build Rating . | . . . . . . Part Schematics Acquired . | . . . . . . Parts Built . | . . . . . . Authchips . | . . . . . . Time . | . . . . . . Total Part Build Rating . | . . . . . . Parts Repaired . | . . . . . . Time . | . . . . . . Parts Recycled . | . . . . . . Recycled Matter . | . . . . . . Retrieved Matter . | . . . . . . Retrieved Components . | . . . . . . Parts Scanalyzed . | . . . . . . Part Schematics Acquired . | . . . . . . Parts Damaged . | . . . . . . Bothacking | -11 -10 -10 -10 -9 -8 ------------ Run | Yrd Mat Min Exi Min Mat Used RIF Installer . | . . . . . . Robots Hacked . | . . . . . . Non-combat . | . . . . . . Combat . | . . . . . . Robot Hacks Applied . | . . . . . . Relay Couplers Released . | . . . . . . Fabnet Peak Effective % . | . . . . . . Robots Rewired . | . . . . . . Allies Hacked . | . . . . . . Hacks Repelled . | . . . . . . Allies | -11 -10 -10 -10 -9 -8 -------- Run | Yrd Mat Min Exi Min Mat Total Allies . | . . . . . . Largest Group . | . . . . . . Highest-Rated Group . | . . . . . . Highest-Rated Ally . | . . . . . . Total Orders . | . . . . . . Ally Attacks . | . . . . . . Total Damage . | . . . . . . Kills . | . . . . . . Allies Corrupted . | . . . . . . Allies Melted . | . . . . . . Intel | -11 -10 -10 -10 -9 -8 ------- Run | Yrd Mat Min Exi Min Mat Robot Analysis Total . | . . . . . . Derelict Logs Recovered . | . . . . . . Drone Launches . | . . . . . . Drone Recoveries . | . . . . . . Exploration | -11 -10 -10 -10 -9 -8 ------------- Run | Yrd Mat Min Exi Min Mat Turns Passed 2449 | 100 337 115 1346 170 381 Spaces Moved 1438 | 49 178 71 838 106 196 Core 5 | 5 . . . . . Treads 1433 | 44 178 71 838 106 196 Legs . | . . . . . . Wheels . | . . . . . . Hover . | . . . . . . Flight . | . . . . . . Fastest Speed 50 | 50 160 160 160 160 160 Average Speed 159 | 148 160 160 160 160 160 Slowest Speed 160 | 160 160 160 160 160 160 Overloaded Moves . | . . . . . . Propulsion Burnouts . | . . . . . . Robots Hopped . | . . . . . . Cave-ins Triggered . | . . . . . . Exploration Rate (%) 30 | 4 28 21 92 21 14 Regions Visited 5 Branch Regions 3 Pre-discovered Areas . | . . . . . . Known Exits Taken 1 | . 1 . . . . Unknown Exits Taken 4 | 1 . 1 1 1 . Scrap Searched 1 | . . 1 . . . Spaces Dug . | . . . . . . Terrain Destroyed 75 | . 11 8 . . 56 Melee . | . . . . . . Projectile . | . . . . . . AOE 75 | . 11 8 . . 56 Terrain Rammed . | . . . . . . Walls Destroyed . | . . . . . . Machines Disabled . | . . . . . . Actions | -11 -10 -10 -10 -9 -8 --------- Run | Yrd Mat Min Exi Min Mat Total 1527 | 68 205 71 844 107 232 Wait 5 | . . . 1 . 4 Move 1434 | 49 177 70 837 105 196 Hop . | . . . . . . Pick Up 23 | 6 5 . 1 1 10 Fast Attach 7 | 6 1 . . . . Attach 4 | . . . . . 4 Detach . | . . . . . . Swap 8 | . 3 . 1 . 4 Drop 6 | . 3 . 2 1 . Fire 28 | 1 13 1 . . 13 Melee . | . . . . . . Ram . | . . . . . . Kick . | . . . . . . Crush 10 | 6 3 . . . 1 Escape Stasis . | . . . . . . Rewire 2 | . . . 2 . . Trap . | . . . . . . Miscellaneous . | . . . . . . Route ------- -11/Scrapyard -10/Materials (discovered 2 exits: *Min x2) -10/Mines -10/Exiles (discovered 2 exits: [*Min x2]) -9/Mines -8/Materials History --------- Turn | Location | Event 3 | -11/Scrapyard | Discovered new exit (range 16) 101 | -11/Scrapyard | Entered Materials 269 | -10/Materials | Discovered new exit (range 9) 307 | -10/Materials | Identified exit to Mines 319 | -10/Materials | Build established: Mutant 438 | -10/Materials | Entered Mines 547 | -10/Mines | Deemed a non-threat by the Exiles lab entrance 547 | -10/Mines | Discovered new exit (range 5) 553 | -10/Mines | Entered Exiles 579 | -10/Exiles | Discovered new exit (range 15) 603 | -10/Exiles | Met 8R-AWN 630 | -10/Exiles | Met EX-HEX 677 | -10/Exiles | Met EX-BIN 709 | -10/Exiles | Aligned with FarCom system 710 | -10/Exiles | Given EX-Vault access code 893 | -10/Exiles | Met EX-DEC 1190 | -10/Exiles | Discovered new exit (range 12) 1415 | -10/Exiles | Visited The Gauntlet 1899 | -10/Exiles | Entered Mines 1967 | -9/Mines | Found a damaged Exp. Sensor Array with a note attached 1970 | -9/Mines | Found Prototype Device 2037 | -9/Mines | Discovered new exit (range 10) 2054 | -9/Mines | Assembled infested the area 2059 | -9/Mines | Assisted by a Guerilla fighting off Assembled 2069 | -9/Mines | Entered Materials 2069 | -8/Materials | Evolved 4 slots: Power x1, Propulsion x2, Weapon x1 2381 | -8/Materials | Build established: Skirmisher 2431 | -8/Materials | Garrison activated, responded to threat 2450 | -8/Materials | Self-destructed Last Messages --------------- T-07 Excavator destroyed. Grenade Launcher destroyed. Critical hit (Burn: +37). R-06 Scavenger collects Med. Matter Pod. G-47 Trooper destroyed. R-06 Scavenger collects Lgt. Ion Engine. K-01 Serf collects debris. G-47 Trooper destroyed. R-06 Scavenger collects Com. Wheel. K-01 Serf collects debris. R-06 Scavenger destroyed. G-50 Soldier knocked back. S-10 Pest destroyed. Critical hit (Burn: +37). K-01 Serf collects debris. The unstable cave ceiling collapses. 35 Matter crushed. G-50 Soldier destroyed. R-06 Scavenger knocked back. Lgt. Treads destroyed. Map ----- +----------------------------------------------------+ | ?????????????????????????????????????????????? | | ?????????????????????????????????????????????? | | ?????????????????????????????????????????????? | | ?????????????????????????????????????????????? | | ?????????????????????????????????????????????? | | ????????????????????????????????????? ?????? | | ????????????????????????????????????? ?????? | | ????????????????????????????????????? ?????? | | ????????????????????????????????????? ?????? | | ?????????????????????????g??????????# ??????? | | ????????????????????????? ??????????# ??????? | | ????????????????????????? ??????????# ??????? | | ?????????????????????????g??????????# ??????? | | ?????????????????????????g??????????# #??????? | | ????????????????????????? ??????????# #??????? | | ????????????????????????? ??????????# #??????? | | ?????????????????????#### ########### #??????? | | ?????????????????? gg ###????? | | ?????????????????? #????? | | ?????????????????? % #????? | | ????????????????####### ####+##### #####? | | ????????????????# s # ## ==#? | | ????????????????# """ k% T ## ==#? | | ??????????????????""" %+ !## #? | | ????????????????# """ " * ## ## g #? | | ????????????????# % =%@ ## ## g #? | | ????????????????#%= =%= =% ## ## g #? | | ????????????????#%! !=**= #####+### #####? | | ????????????? a r=| =%%]!% #??# #?# #????? | | ??????????? ###### !# ##??# #?# #????? | | ??????????????????#### #???# #?# #????? | | ?????????????????????##########?# #?# #????? | | ????????????????????????#! ### ### #????? | | ?????????????????######## #????? | | ?????????????????# #????? | | ?????????????????# ###### #????? | | ?????????????????# #????# ##+##### ##????? | | ?????????????????# #????###+### # #?????? | | ?????????????????# #??????????# # #?????? | | ?????????????????# #??????????# # #?????? | | ?????????????????# #??????????# # #?????? | | ?????????????????# #??????????# # #?????? | | ?????????????????# #??????????# # #?????? | | ?????????????????# #?##??#??#######+## #?????? | | ?????????????????# #? ??!??# #?????? | | ?????????????????# ## ! #?# #### ####?????? | | ?????????????????# + #???????# #????????? | | ?????????????????# ## """ #???????# #????????? | | ?????????????????# ## """ #???????# #????????? | | ?????????????????# ## """ #????####/###??????? | +----------------------------------------------------+ Best States ------------- Heat Dissipation 31 Energy Generation 31 Energy Capacity 520 Matter Stores 500 Matter Capacity 500 Sight Range 16 Terrain Scan Density 10 Additional Mass Support 6 Evasion (%) 40 Recoil Reduction 4 Item Schematics ----------------- None Robot Schematics ------------------ None Fabricated ------------ Nothing Alien Tech Used ----------------- None Achievements -------------- Let's See Who's Tougher Challenges ------------ None Game ------ Seed MediumColdModule Manual? 0 Play Time 00:18:38 Cumulative 6.4 hours Start 2024.04.08 @ 19:48:22 End 2024.04.08 @ 20:07:52 Sessions 1 Manual Loads 0 Difficulty Rogue Special Mode None Game No. 13 Rogue 13 Adventurer 0 Explorer 0 Win Type - Total 0 Types 0/0/0/0/0/0/0/0/0 Lore% 13 Gallery% 10 Achievement% 13 Wizard Run 0 Options --------- Layout 0 ASCII 0 Keyboard 1 Movement Numpad Keybinds 0 Fullscreen 1 Font 18/SmallcapsGlow Map View 76x50 Zoom Use 0% Tactical HUD 0 Map Filters NONE Filters NONE Steam 1 RUN: cd2e346c-9e8f-4127-9370-7dd0e8b8800e